fUSD/lending_fUSD_20241129
["ID","MTS","AMOUNT","RATE_DAILY","PERIOD"]
[343687472,1732859445921,-3757.0,9.911e-05,2]
[343687474,1732859445931,-534.0,9.911e-05,2]
[343687476,1732859445940,-150.0,9.911e-05,2]
[343687478,1732859445950,-229.98570628,9.971e-05,2]
[343687479,1732859445959,-200.0,9.972e-05,2]
[343687480,1732859445969,-200.0,9.972e-05,2]
[343687481,1732859445978,-504.28459339,9.973e-05,2]
[343687482,1732859445987,-159.37730802,9.973e-05,2]
[343687483,1732859445997,-500.0,9.973e-05,2]
[343687484,1732859446007,-229.98570628,9.973e-05,2]
[343687485,1732859446017,-229.98570628,9.973e-05,2]
[343687486,1732859446026,-1630.47764006,9.975e-05,2]
[343687487,1732859446036,-225.13885718,9.975e-05,2]
[343687488,1732859446046,-1630.47764006,9.977e-05,2]
[343687489,1732859446056,-200.0,9.979e-05,2]
[343687490,1732859446065,-200.0,9.981e-05,2]
[343687492,1732859446076,-225.13885718,9.981e-05,2]
[343687493,1732859446086,-200.0,9.981e-05,2]
[343687494,1732859446095,-1630.47764006,9.985e-05,2]
[343687496,1732859446105,-229.98570628,9.985e-05,2]
[343687498,1732859446115,-1630.47764006,9.985e-05,2]
[343687500,1732859446124,-229.98570628,9.986e-05,2]
[343687502,1732859446134,-225.13885718,9.988e-05,2]
[343687504,1732859446143,-225.13885718,9.989e-05,2]
[343687506,1732859446153,-229.98570628,9.989e-05,2]
[343687508,1732859446165,-200.0,9.99e-05,2]
[343687510,1732859446174,-200.0,9.99e-05,2]
[343687512,1732859446184,-26051.41878012,9.99e-05,2]
[343687514,1732859446193,-26051.41878007,9.99e-05,2]
[343687516,1732859446202,-26051.41878007,9.99e-05,2]
[343687518,1732859446212,-26051.41878007,9.99e-05,2]
[343687519,1732859446221,-26051.41878007,9.99e-05,2]
[343687521,1732859446231,-26051.41878007,9.99e-05,2]
[343687523,1732859446242,-26051.41878007,9.99e-05,2]
[343687526,1732859446252,-26051.41878007,9.99e-05,2]
[343687527,1732859446262,-26051.41878007,9.99e-05,2]
[343687529,1732859446272,-225.13885718,9.991e-05,2]
[343687530,1732859446281,-225.13885718,9.992e-05,2]
[343687531,1732859446291,-200.0,9.997e-05,2]
[343687532,1732859446300,-150.0,9.999e-05,2]
[343687533,1732859446310,-150.92218949,9.999e-05,2]
[343687534,1732859446320,-1283.35115576,9.999e-05,3]
[343687535,1732859446329,-240514.1227937,9.999e-05,2]
[343687536,1732859446339,-2580.62563733,9.999e-05,2]
[343687537,1732859446348,-3018.05960697,9.999e-05,2]
[343687538,1732859446359,-1630.47764006,9.999e-05,2]
[343687539,1732859446368,-1124041.24380579,0.0001,2]
[343687540,1732859446377,-18044.15962571,0.0001,2]
[343687541,1732859446387,-1630.47764006,0.0001,2]
[343687542,1732859446396,-10475.84782554,0.0001,2]
[343687543,1732859446405,-10475.84782552,0.0001,2]
[343687544,1732859446415,-10475.84782552,0.0001,2]
[343687545,1732859446424,-10475.84782552,0.0001,2]
[343687546,1732859446435,-10475.84782552,0.0001,2]
[343687547,1732859446445,-10475.84782552,0.0001,2]
[343687548,1732859446455,-10475.84782552,0.0001,2]
[343687549,1732859446465,-10475.84782552,0.0001,2]
[343687550,1732859446475,-10475.84782552,0.0001,2]
[343687551,1732859446485,-16561407.66934712,0.0001,2]
[343687552,1732859446499,-11193974.96559708,0.0001,2]
[343687553,1732859446508,-1075102.71952152,0.0001,2]
[343687556,1732859919719,2350.0,0.00025,120]
[343687558,1732860044809,6591.3,0.00027,90]
[343687614,1732860627320,2195.0,0.00027,90]
[343687621,1732860631715,-2000.0,8.2e-05,2]
[343687622,1732860631724,-1034.79,8.219e-05,2]
[343687623,1732860631733,-1253.74,9.131e-05,2]
[343687624,1732860631743,-619.07250952,9.155e-05,2]
[343687625,1732860631754,-380.92749048,9.155e-05,2]
[343687626,1732860631763,-176.23,9.187e-05,2]
[343687627,1732860631773,-422.22,9.589e-05,2]
[343687628,1732860631782,-177.05,9.589e-05,2]
[343687629,1732860631792,-300.0,9.699e-05,2]
[343687630,1732860631801,-238.9865,9.7e-05,2]
[343687631,1732860631810,-10651.9861,9.7e-05,2]
[343687632,1732860631819,-3512.2431,9.7e-05,2]
[343687633,1732860631829,-422.22,9.726e-05,2]
[343687634,1732860631838,-150.0,9.738e-05,2]
[343687635,1732860631848,-422.22,9.863e-05,2]
[343687636,1732860631858,-150.0,9.899e-05,2]
[343687637,1732860631867,-2500.0,9.9e-05,2]
[343687638,1732860631876,-1002.0,9.9e-05,2]
[343687639,1732860631886,-630.0,9.911e-05,2]
[343687640,1732860631895,-816.0,9.911e-05,2]
[343687641,1732860631905,-1262.0,9.911e-05,2]
[343687642,1732860631914,-3755.0,9.911e-05,2]
[343687643,1732860631923,-534.0,9.911e-05,2]
[343687644,1732860631932,-150.0,9.911e-05,2]
[343687645,1732860631942,-500.0,9.973e-05,2]
[343687646,1732860631952,-2580.62563733,9.999e-05,2]
[343687647,1732860631962,-1302.09831988,9.999e-05,3]
[343687648,1732860631971,-1550.665,9.999e-05,2]
[343687650,1732860631982,-40460.38249999,0.0001,2]
[343687652,1732860631994,-20395.9,0.0001,2]
[343687661,1732860637829,-586.21440238,0.0001,2]
[343687662,1732860637840,-13020.36526756,0.0001,2]
[343687663,1732860637851,-4774.43974618,0.0001,2]
[343687715,1732860639548,-4821.0,0.0001,2]
[343687719,1732860639676,-401.21863196,0.0001,2]
[343687720,1732860639687,-3036.72242504,0.0001,2]
[343687721,1732860639702,-4019.09127962,0.0001,2]
[343687722,1732860639714,-315.6,0.0001,2]
[343687723,1732860639807,-823.20849988,0.0001,2]
[343687732,1732860642649,-3018.50900008,0.0001,2]
[343687733,1732860642660,-5832.28137502,0.0001,2]
[343687734,1732860642825,-1912.61495713,0.0001,2]
[343687735,1732860642836,-2901.62680282,0.0001,2]
[343687751,1732860645527,-1588.77119875,0.0001,2]
[343687752,1732860645559,-9281.5,0.0001,2]
[343687753,1732860645750,-3810.32456387,0.0001,2]
[343687754,1732860645781,-13073.86376714,0.0001,2]
[343687755,1732860645893,-782.4,0.0001,2]
[343687774,1732861480588,844.84,0.00027,90]
[343687777,1732861588875,298.0,0.00027,90]
[343687823,1732861831802,-983.05,8.219e-05,2]
[343687824,1732861831811,-46.95,8.949e-05,2]
[343687825,1732861831823,-795.4617536,8.949e-05,2]
[343687826,1732861831834,-1038.54061623,8.949e-05,2]
[343687827,1732861831878,-482.54438682,8.949e-05,2]
[343687828,1732861831890,-21047.14324335,8.949e-05,2]
[343687829,1732861831899,-250.0,8.949e-05,2]
[343687830,1732861831915,-1000.0,8.984e-05,2]
[343687831,1732861831924,-150.0,8.999e-05,2]
[343687832,1732861831933,-14265.34003458,9e-05,2]
[343687833,1732861832035,-9044.74766306,9e-05,2]
[343687834,1732861832048,-587.65,9.004e-05,2]
[343687835,1732861832058,-250.0,9.04e-05,2]
[343687836,1732861832067,-207.51,9.301e-05,2]
[343687837,1732861832075,-4074.0,9.509e-05,2]
[343687838,1732861832084,-361.37,9.589e-05,2]
[343687839,1732861832093,-177.05,9.589e-05,2]
[343687840,1732861832103,-10844.55111607,9.65e-05,2]
[343687841,1732861832196,-1813.22700854,9.65e-05,2]
[343687842,1732861832287,-404.92261432,9.65e-05,2]
[343687843,1732861832304,-36021.64901728,9.65e-05,2]
[343687844,1732861832313,-6340.23,9.67e-05,2]
[343687845,1732861832323,-999.99,9.67e-05,2]
[343687846,1732861832332,-150.99,9.67e-05,2]
[343687847,1732861832342,-475.85,9.67e-05,2]
[343687848,1732861832350,-1886.65,9.67e-05,2]
[343687849,1732861832359,-262.80118432,9.67e-05,2]
[343687862,1732861837800,-37.18881568,9.67e-05,2]
[343687863,1732861837810,-9999.99,9.67e-05,2]
[343687864,1732861837819,-361.37,9.726e-05,2]
[343687865,1732861837829,-266.78,9.778e-05,2]
[343687866,1732861837838,-361.37,9.863e-05,2]
[343687867,1732861837848,-255.0,9.899e-05,2]
[343687868,1732861837857,-9149.98362892,9.899e-05,2]
[343687869,1732861838020,-2221.38,9.899e-05,2]
[343687870,1732861838031,-23502.4159008,9.899e-05,2]
[343687871,1732861838043,-49373.35602498,9.899e-05,2]
[343687872,1732861838070,-1948.73226967,9.899e-05,2]
[343687873,1732861838081,-11808.26036742,9.899e-05,2]
[343687898,1732861839873,-1964.76576173,9.899e-05,2]
[343687899,1732861839975,-292.38761836,9.899e-05,2]
[343687900,1732861839989,-1209.07996905,9.899e-05,2]
[343687901,1732861842890,-3256.50652326,9.899e-05,2]
[343687902,1732861843066,-960.46514802,9.899e-05,2]
[343687903,1732861843078,-4021.693613,9.899e-05,2]
[343687904,1732861843089,-52676.15779931,9.899e-05,2]
[343687911,1732861845719,-483.11999668,9.899e-05,2]
[343687919,1732862588953,13238.17,0.00027,90]
[343687921,1732862701322,700.0,0.00027,90]
[343687940,1732862771700,425.33,8.21e-05,7]
[343687971,1732863032186,-300.0,8.811e-05,2]
[343687972,1732863032195,-13740.25251324,8.812e-05,2]
[343687973,1732863032207,-5772.04748676,8.812e-05,2]
[343687974,1732863032216,-1000.0,8.961e-05,2]
[343687975,1732863032228,-123.16839462,8.962e-05,2]
[343687976,1732863032381,-76.83160538,8.962e-05,2]
[343687977,1732863032390,-168.02,8.962e-05,2]
[343687978,1732863032399,-213.42,8.962e-05,2]
[343687979,1732863032408,-250.0,8.99e-05,2]
[343687980,1732863032418,-263.43,9.021e-05,2]
[343687981,1732863032427,-576.2897,9.212e-05,2]
[343687982,1732863032437,-168.46,9.284e-05,2]
[343687983,1732863032447,-150.0,9.311e-05,2]
[343687984,1732863032458,-46868.81099302,9.312e-05,2]
[343687985,1732863032480,-402.41443776,9.312e-05,2]
[343687986,1732863032491,-497.95680311,9.312e-05,2]
[343687998,1732863038040,-933.89,8.219e-05,2]
[343687999,1732863038050,-1060.1966828,9.312e-05,2]
[343688000,1732863038061,-16078.3391,9.312e-05,2]
[343688001,1732863038302,-16779.54092486,9.312e-05,2]
[343688002,1732863038314,-451.4118457,9.312e-05,2]
[343688003,1732863038352,-4006.54498381,9.312e-05,2]
[343688004,1732863038364,-2715.45301412,9.312e-05,2]
[343688005,1732863038403,-154303.3026771,9.312e-05,2]
[343688062,1732863040132,-7866.77079814,9.312e-05,2]
[343688063,1732863040144,-2330.875,9.312e-05,2]
[343688064,1732863040196,-2697.18756705,9.312e-05,2]
[343688065,1732863040262,-24080.25,9.312e-05,2]
[343688066,1732863040330,-701.6572311,9.312e-05,2]
[343688084,1732863042985,-18400.83151686,9.312e-05,2]
[343688091,1732863043042,-1928.64332324,9.312e-05,2]
[343688092,1732863043054,-3700.92843031,9.312e-05,2]
[343688093,1732863043065,-3634.59788886,9.312e-05,2]
[343688094,1732863043076,-17516.86899831,9.312e-05,2]
[343688095,1732863043195,-5908.0045743,9.312e-05,2]
[343688096,1732863043206,-1369.93937564,9.312e-05,2]
[343688097,1732863043250,-721.93261127,9.312e-05,2]
[343688120,1732863046057,-17152.88947269,9.312e-05,2]
[343688121,1732863046214,-1457.38999732,9.312e-05,2]
[343688122,1732863046226,-3148.7,9.312e-05,2]
[343688131,1732863313377,-211.56,8.916e-05,2]
[343688132,1732863313399,-250.0,8.971e-05,2]
[343688133,1732863313425,-336.56936538,8.971e-05,2]
[343688134,1732863313447,-150.0,9.211e-05,2]
[343688135,1732863313471,-300.0,9.211e-05,2]
[343688136,1732863313492,-77089.87063462,9.212e-05,2]
[343688137,1732863415521,658.78820001,0.00027,90]
[343688138,1732863431849,300.0,0.00027,90]
[343688139,1732863448989,300.0,8e-05,2]
[343688140,1732863451147,300.0,0.0001,6]
[343688142,1732863466039,852.3279895,0.00027,90]
[343688143,1732863499323,300.0,0.0001,6]
[343688144,1732863516162,300.0,0.00027,90]
[343688145,1732863540266,300.0,0.0001,6]
[343688146,1732863543147,300.0,0.0001,7]
[343688147,1732863574447,300.0,0.00027,90]
[343688148,1732863678650,260.0,0.0001,6]
[343688150,1732863720700,-411.58303948,0.00015,10]
[343688151,1732863720727,-12804.0,0.00015,10]
[343688152,1732863720749,-5244.38136317,0.00015,14]
[343688153,1732863720773,-250.0,0.00016,10]
[343688154,1732863720798,-343.48,0.00016658,30]
[343688155,1732863720826,-182.3494387,0.0001895,14]
[343688156,1732863720857,-343.48,0.00019242,30]
[343688157,1732863720881,-32300.0,0.0002,20]
[343688158,1732863720906,-300.0,0.0002,10]
[343688159,1732863725358,268.74,0.00018,11]
[343688160,1732863757273,-260.0,0.00012,7]
[343688161,1732863757378,-250.0,0.00014,7]
[343688162,1732863757403,-300.0,0.00015,7]
[343688163,1732863757427,-3440.0,0.00016463,7]
[343688164,1732863757462,-300.0,0.00019,9]
[343688165,1732863757484,-3202.23,0.000193,7]
[343688166,1732863757508,-4000.0,0.0002,7]
[343688167,1732863757531,-1979.0,0.0002,7]
[343688168,1732863767635,2241.57,0.000193,7]
[343688177,1732863854131,309.13,0.00016658,30]
[343688178,1732863854370,309.13,0.00019242,30]
[343688179,1732863855525,1880.0,0.0002,7]
[343688189,1732863954090,1569.09,0.000193,7]
[343688190,1732864013274,2000.0,0.00027,90]
[343688233,1732864140049,1098.37,0.000194,7]
[343688260,1732864232287,-300.0,8.218e-05,2]
[343688261,1732864232297,-350.89465745,8.219e-05,2]
[343688262,1732864232307,-12562.0,8.219e-05,2]
[343688263,1732864232317,-1062.71,8.219e-05,2]
[343688264,1732864232326,-181.65,8.314e-05,2]
[343688265,1732864232336,-250.0,8.327e-05,2]
[343688266,1732864232345,-861.5,8.38e-05,2]
[343688267,1732864232355,-1000.0,8.403e-05,2]
[343688268,1732864232367,-211.56,8.551e-05,2]
[343688269,1732864232379,-150.0,8.67e-05,2]
[343688270,1732864232388,-1500.0,8.671e-05,2]
[343688271,1732864232398,-53.72783325,8.671e-05,2]
[343688272,1732864232479,-23620.88216675,8.671e-05,2]
[343688273,1732864232489,-168.02,8.755e-05,2]
[343688274,1732864232498,-264.3182,8.8e-05,2]
[343688275,1732864232508,-272.9,8.89e-05,2]
[343688276,1732864232517,-74517.43,8.9e-05,2]
[343688277,1732864232527,-952.4006,8.9e-05,2]
[343688278,1732864232537,-16860.0,8.938e-05,2]
[343688279,1732864232547,-223857.0,9e-05,2]
[343688280,1732864232557,-420.0,9.04e-05,2]
[343688281,1732864232566,-22910.12936538,9.212e-05,2]
[343688282,1732864232579,-500.0,9.212e-05,2]
[343688283,1732864232588,-4761.5,9.212e-05,2]
[343688284,1732864232598,-125932.1608,9.212e-05,2]
[343688285,1732864232608,-245000.0,9.212e-05,2]
[343688286,1732864232619,-151.0,9.212e-05,2]
[343688287,1732864232629,-164.6,9.274e-05,2]
[343688288,1732864232638,-326.01367282,9.293e-05,2]
[343688289,1732864232650,-501.12355864,9.293e-05,2]
[343688290,1732864232661,-500.0,9.293e-05,2]
[343688291,1732864232671,-5000.0,9.3e-05,2]
[343688292,1732864232680,-262602.30494869,9.312e-05,2]
[343688293,1732864232692,-2320.96704111,9.312e-05,2]
[343688294,1732864232704,-9091.64329693,9.312e-05,2]
[343688295,1732864232715,-156534.54037418,9.312e-05,2]
[343688296,1732864232726,-19388.89623178,9.312e-05,2]
[343688297,1732864232739,-805.70819866,9.312e-05,2]
[343688298,1732864232829,-8022.152323,9.312e-05,2]
[343688308,1732864238272,-17465.56027796,9.312e-05,2]
[343688309,1732864238283,-22868.51501466,9.312e-05,2]
[343688310,1732864238472,-3089.9693188,9.312e-05,2]
[343688311,1732864238545,-475.81489047,9.312e-05,2]
[343688317,1732864240442,-13474.6587,8.9e-05,2]
[343688318,1732864240451,-10587.57929938,9.312e-05,2]
[343688319,1732864240467,-1527.56120462,9.312e-05,2]
[343688320,1732864240478,-361.61000005,9.312e-05,2]
[343688321,1732864240489,-786.28272713,9.312e-05,2]
[343688333,1732864244488,-2268.88232739,9.312e-05,2]
[343688334,1732864244500,-5994.92885426,9.312e-05,2]
[343688335,1732864244657,-3492.79073097,9.312e-05,2]
[343688336,1732864244668,-2996.15832101,9.312e-05,2]
[343688337,1732864244679,-16306.50247146,9.312e-05,2]
[343688338,1732864244772,-19.63684458,9.312e-05,2]
[343688339,1732864244784,-28631.218982,9.312e-05,2]
[343688340,1732864244795,-52758.14999998,9.312e-05,2]
[343688341,1732864244834,-5320.99997292,9.312e-05,2]
[343688365,1732864246528,-1501499.11017333,9.312e-05,2]
[343688366,1732864312657,-76174.0,8.9e-05,2]
[343688367,1732864325700,768.86,0.000195,7]
[343688368,1732864419371,-1078.04,8.219e-05,2]
[343688369,1732864450557,278.21,0.00016658,30]
[343688370,1732864450776,278.21,0.00019242,30]
[343688371,1732864511859,538.2,0.000199,7]
[343688372,1732864518431,2000.0,0.00027,120]
[343688373,1732864519960,2000.0,0.00027,120]
[343688374,1732864532003,2000.0,0.00027,120]
[343688375,1732864534190,2000.0,0.00027,120]
[343688376,1732864536957,2000.0,0.00027,120]
[343688377,1732864543139,2000.0,0.00027,120]
[343688378,1732864544745,2000.0,0.00027,120]
[343688379,1732864546361,2000.0,0.00027,120]
[343688380,1732864605740,10000.0,0.00027,120]
[343688381,1732864688123,3500.0,0.00027,120]
[343688383,1732864804760,2000.0,0.00027,90]
[343688385,1732865054034,1954.13842517,0.0002,7]
[343688386,1732865055323,250.38,0.00016658,30]
[343688387,1732865055518,250.38,0.00019242,30]
[343688389,1732865193076,1235.031127,8.178e-05,2]
[343688467,1732865432480,-213.58605214,8.219e-05,2]
[343688468,1732865432490,-1216.58,8.219e-05,2]
[343688469,1732865432499,-186.16,8.219e-05,2]
[343688470,1732865432508,-40.26382581,8.219e-05,2]
[343688471,1732865432519,-209.73617419,8.219e-05,2]
[343688472,1732865432529,-300.0,8.252e-05,2]
[343688473,1732865432538,-302.57651895,8.252e-05,2]
[343688474,1732865432548,-23900.0,8.253e-05,2]
[343688475,1732865432557,-302.57651895,8.3e-05,2]
[343688476,1732865432566,-500.0,8.3e-05,3]
[343688477,1732865432576,-250.0,8.313e-05,2]
[343688478,1732865432586,-170.73,8.342e-05,2]
[343688479,1732865432595,-250.0,8.35e-05,2]
[343688480,1732865432605,-1000.0,8.4e-05,3]
[343688481,1732865432614,-1500.0,8.5e-05,3]
[343688482,1732865432624,-1000.0,8.575e-05,2]
[343688483,1732865432633,-2000.0,8.6e-05,3]
[343688484,1732865432643,-2500.0,8.7e-05,3]
[343688485,1732865432652,-150.0,8.799e-05,2]
[343688486,1732865432661,-4158.31802215,8.8e-05,2]
[343688487,1732865432673,-1047.38427785,8.8e-05,2]
[343688488,1732865432682,-667.14,8.8e-05,2]
[343688489,1732865432691,-1626.6526,8.8e-05,2]
[343688490,1732865432701,-500.0,8.8e-05,3]
[343688491,1732865432711,-3701.9002,8.8e-05,2]
[343688492,1732865432720,-837.0,8.899e-05,2]
[343688493,1732865432729,-1826.914,8.899e-05,2]
[343688494,1732865432739,-165.828,8.899e-05,2]
[343688495,1732865432748,-168826.0,8.9e-05,2]
[343688496,1732865432758,-500.0,8.9e-05,3]
[343688497,1732865432767,-737.81848118,9e-05,2]
[343688498,1732865432777,-658.02285339,9e-05,2]
[343688499,1732865432786,-500.0,9e-05,3]
[343688500,1732865432796,-420.0,9.077e-05,2]
[343688501,1732865432805,-1310.0,9.095e-05,2]
[343688502,1732865432815,-44515.4436,9.212e-05,2]
[343688503,1732865432824,-158011.89598773,9.28e-05,2]
[343688514,1732865432929,-4351.45093378,9.28e-05,2]
[343688524,1732865434864,-43010.79713,9.28e-05,2]
[343688526,1732865438739,-2500.4725627,9.28e-05,2]
[343688539,1732865440355,-1029.34376198,9.28e-05,2]
[343688556,1732865440515,-7659.95842703,9.28e-05,2]
[343688558,1732865440528,-536.1,9.28e-05,2]
[343688567,1732865440676,-301.9096609,9.28e-05,2]
[343688568,1732865441997,-603.7425768,9.28e-05,2]
[343688569,1732865442030,-54717.25253112,9.28e-05,2]
[343688573,1732865443357,-6009.97324324,9.28e-05,2]
[343688574,1732865443369,-6630.01672268,9.28e-05,2]
[343688575,1732865443500,-3016.87199962,9.28e-05,2]
[343688576,1732865443738,-7199.9999995,9.28e-05,2]
[343688577,1732865443781,-25535.09786,9.28e-05,2]
[343688578,1732865443793,-9003.32405415,9.28e-05,2]
[343688582,1732865446379,-266.8508151,9.28e-05,2]
[343688583,1732865446425,-4414.41955896,9.28e-05,2]
[343688584,1732865446484,-9335.2696,9.28e-05,2]
[343688585,1732865446496,-2871.57976914,9.28e-05,2]
[343688586,1732865446507,-26766.18748945,9.28e-05,2]
[343688587,1732865446560,-22410.37444775,9.28e-05,2]
[343688588,1732865446575,-33201.61232397,9.28e-05,2]
[343688589,1732865446586,-6800.0,9.28e-05,2]
[343688590,1732865446598,-125643.662,9.28e-05,2]
[343688591,1732865446609,-8661.885694,9.28e-05,2]
[343688592,1732865446620,-14968.70392,9.28e-05,2]
[343688593,1732865446632,-3543.45976896,9.28e-05,2]
[343688594,1732865446642,-215.37977479,9.293e-05,2]
[343688595,1732865446651,-1000.0,9.3e-05,2]
[343688596,1732865446660,-17583.25125625,9.312e-05,2]
[343688597,1732865446671,-27686.29024,9.312e-05,2]
[343688598,1732865446683,-19192.6977,9.312e-05,2]
[343688599,1732865446693,-15244.10415,9.312e-05,2]
[343688600,1732865446705,-37058.4,9.312e-05,2]
[343688601,1732865446716,-394.73017156,9.312e-05,2]
[343688602,1732865446734,-280130.55473114,9.312e-05,2]
[343688605,1732865657977,1786.0,0.0002,7]
[343688606,1732865850834,225.34,0.00016658,30]
[343688607,1732865851050,225.34,0.00019242,30]
[343688610,1732866143082,1002.0,0.00027,90]
[343688612,1732866281606,-1155.75,8.219e-05,2]
[343688660,1732866432195,33931.95039901,0.0002,7]
[343688662,1732866450857,202.8,0.00016658,30]
[343688663,1732866451049,202.8,0.00019242,30]
[343688664,1732866466906,1418.49046611,0.0002,7]
[343688665,1732866492967,1097.96,8.219e-05,2]
[343688668,1732866570610,-1597.25,8.568e-05,2]
[343688669,1732866570635,-250.0,8.573e-05,2]
[343688670,1732866570661,-181.65,8.573e-05,2]
[343688671,1732866570686,-250.0,8.573e-05,2]
[343688672,1732866570710,-1000.0,8.604e-05,2]
[343688673,1732866570734,-186.16,8.69e-05,2]
[343688674,1732866570758,-250.0,8.69e-05,2]
[343688675,1732866570781,-23890.0,8.69e-05,2]
[343688676,1732866570807,-218.32,8.797e-05,2]
[343688677,1732866570829,-479.8102,8.799e-05,2]
[343688678,1732866570855,-1461.531,8.799e-05,2]
[343688679,1732866570878,-150.0,8.799e-05,2]
[343688680,1732866570902,-42387.9895,8.8e-05,2]
[343688681,1732866570926,-11401.3959,8.8e-05,2]
[343688682,1732866570949,-100000.0,8.8e-05,2]
[343688683,1732866570973,-13474.6587,8.8e-05,2]
[343688684,1732866570995,-500.0,8.8e-05,2]
[343688685,1732866571018,-168.46,8.951e-05,2]
[343688686,1732866571040,-1000.0,9.1e-05,2]
[343688687,1732866571064,-521.86799493,9.293e-05,2]
[343688688,1732866571086,-313.94340507,9.3e-05,2]
[343688706,1732866631630,-3824.1073242,8.573e-05,2]
[343688707,1732866631640,-642.412,8.7e-05,2]
[343688708,1732866631650,-169.75,8.85e-05,2]
[343688709,1732866631659,-686.05659493,9.3e-05,2]
[343688710,1732866631668,-300.0,9.31e-05,2]
[343688711,1732866631678,-3105.33506175,9.311e-05,2]
[343688712,1732866631687,-300.02,9.311e-05,2]
[343688713,1732866631697,-30333.55055394,9.312e-05,2]
[343688714,1732866631708,-10468.8,9.312e-05,2]
[343688715,1732866631720,-4590.39277658,9.312e-05,2]
[343688716,1732866631731,-806.95104575,9.312e-05,2]
[343688717,1732866631745,-2616.77,9.312e-05,2]
[343688718,1732866631788,-1925.88408,9.312e-05,2]
[343689258,1732866637548,-255.95889675,9.312e-05,2]
[343689268,1732866637636,-11367.41771933,9.312e-05,2]
[343689270,1732866637647,-96100.0,9.312e-05,2]
[343689278,1732866637713,-32370.1344,9.312e-05,2]
[343689280,1732866637724,-1484.0,9.312e-05,2]
[343689456,1732866639539,-8202.38845,9.312e-05,2]
[343689459,1732866639551,-588.78834666,9.312e-05,2]
[343689462,1732866639568,-2458.04764909,9.312e-05,2]
[343689464,1732866639580,-983.92151556,9.312e-05,2]
[343689472,1732866639626,-365.34750075,9.312e-05,2]
[343689487,1732866639706,-472.10724109,9.312e-05,2]
[343689514,1732866639947,-380.44,9.312e-05,2]
[343689530,1732866640147,-593.58752746,9.312e-05,2]
[343689759,1732866642620,-2245.83494158,9.312e-05,2]
[343689771,1732866642767,-5305.4999882,9.312e-05,2]
[343689772,1732866642779,-3100.25000476,9.312e-05,2]
[343690029,1732866645448,-325.1,9.312e-05,2]
[343690031,1732866645460,-441.83053936,9.312e-05,2]
[343690033,1732866645471,-2934.84039028,9.312e-05,2]
[343690042,1732866645621,-23974.99999999,9.312e-05,2]
[343690047,1732866645658,-1625.3237,9.312e-05,2]
[343690052,1732866645697,-3224.90713282,9.312e-05,2]
[343690054,1732866645708,-3186.00021,9.312e-05,2]
[343690056,1732866645719,-1540.07997,9.312e-05,2]
[343690059,1732866645729,-563.22023086,9.312e-05,2]
[343690149,1732866934859,161.861866,0.000188,7]
[343690150,1732867096509,182.52,0.00016658,30]
[343690151,1732867096590,182.52,0.00019242,30]
[343690153,1732867300636,1198.12,8.219e-05,2]
[343690154,1732867377443,368.5,0.00019423,7]
[343690156,1732867454626,1697.0,0.0002,7]
[343690158,1732867491937,518.727,0.0002471,90]
[343690159,1732867494913,518.669,0.0002637,90]
[343690170,1732867641198,3881.72331486,0.00027,90]
[343690226,1732867716108,164.26,0.00016658,30]
[343690227,1732867716321,164.26,0.00019242,30]
[343690228,1732867754299,193607.05894852,0.0002,7]
[343690233,1732867803902,979.42169841,0.00027,90]
[343690234,1732867805023,819.59085126,0.00027,90]
[343690235,1732867835046,-336.37,8.433e-05,2]
[343690236,1732867835056,-250.0,8.497e-05,2]
[343690237,1732867835066,-169.75,8.498e-05,2]
[343690238,1732867835076,-201.1400076,8.499e-05,2]
[343690239,1732867835166,-71.1599924,8.499e-05,2]
[343690240,1732867835175,-489.58,8.537e-05,2]
[343690241,1732867835185,-1000.0,8.545e-05,2]
[343690242,1732867835194,-183.17,8.69e-05,2]
[343690243,1732867835203,-250.0,8.69e-05,2]
[343690244,1732867835212,-250.0,8.69e-05,2]
[343690245,1732867835221,-23900.0,8.69e-05,2]
[343690246,1732867835231,-150.0,8.699e-05,2]
[343690247,1732867835240,-1330.944,8.7e-05,2]
[343690248,1732867835249,-2999.355,8.7e-05,2]
[343690249,1732867835259,-27092.1174,8.7e-05,2]
[343690250,1732867835268,-4541.0433,8.7e-05,2]
[343690251,1732867835277,-1147.544,8.7e-05,2]
[343690252,1732867835287,-27078.0,8.945e-05,2]
[343690253,1732867835296,-164.59,8.951e-05,2]